fUSD/lending_fUSD_20250823
["ID","MTS","AMOUNT","RATE_DAILY","PERIOD"]
[380998811,1755930741843,-400.0,0.0001589,2]
[380998812,1755930741852,-975.83,0.0001589,2]
[380998813,1755930741861,-520.12,0.0001589,2]
[380998814,1755930741870,-567.16,0.0001589,2]
[380998815,1755930741879,-437.71,0.0001589,2]
[380998816,1755930741889,-591.76,0.0001589,2]
[380998817,1755930741898,-629.55,0.0001589,2]
[380998818,1755930741908,-707.96,0.0001589,2]
[380998819,1755930741917,-976.57,0.0001589,2]
[380998820,1755930741926,-400.0,0.0001589,2]
[380998821,1755930741936,-548.63,0.0001589,2]
[380998822,1755930741945,-696.63,0.0001589,2]
[380998823,1755930741956,-548.08,0.0001589,2]
[380998824,1755930741966,-421.64,0.0001589,2]
[380998825,1755930741975,-400.0,0.0001589,2]
[380998826,1755930741984,-408.25,0.0001589,2]
[380998827,1755930741994,-1327.74,0.0001589,2]
[380998828,1755930742003,-666.95,0.0001589,2]
[380998829,1755930742012,-400.0,0.0001589,2]
[380998830,1755930742021,-400.0,0.0001589,2]
[380998831,1755930742031,-478.81,0.0001589,2]
[380998832,1755930742040,-400.0,0.0001589,2]
[380998833,1755930742050,-400.0,0.0001589,2]
[380998834,1755930742060,-475.87,0.0001589,2]
[380998835,1755930742070,-752.44,0.0001589,2]
[380998836,1755930742079,-553.32,0.0001589,2]
[380998837,1755930742088,-414.48,0.0001589,2]
[380998838,1755930742097,-598.85,0.0001589,2]
[380998839,1755930742106,-400.0,0.0001589,2]
[380998840,1755930742115,-418.3,0.0001589,2]
[380998841,1755930742124,-400.0,0.0001589,2]
[380998842,1755930742134,-590.73,0.0001589,2]
[380998843,1755930742143,-558.79,0.0001589,2]
[380998844,1755930742152,-400.0,0.0001589,2]
[380998845,1755930742162,-977.36,0.0001589,2]
[380998846,1755930742171,-400.0,0.0001589,2]
[380998847,1755930742180,-496.02231564,0.0001589,2]
[380998848,1755930742190,-400.0,0.0001589,2]
[380998849,1755930742199,-400.0,0.0001589,2]
[380998850,1755930742208,-1058.0,0.0001589,2]
[380998851,1755930742218,-595.73,0.0001589,2]
[380998852,1755930742227,-792.12,0.0001589,2]
[380998853,1755930742237,-490.78,0.0001589,2]
[380998854,1755930742246,-400.0,0.0001589,2]
[380998855,1755930742255,-400.0,0.0001589,2]
[380998856,1755930742265,-400.0,0.0001589,2]
[380998857,1755930742274,-400.0,0.0001589,2]
[380998858,1755930742284,-664.29,0.0001589,2]
[380998859,1755930742297,-603.04,0.0001589,2]
[380998860,1755930742307,-894.08,0.0001589,2]
[380998861,1755930742316,-400.0,0.0001589,2]
[380998862,1755930742326,-419.15,0.0001589,2]
[380998863,1755930742336,-538.29,0.0001589,2]
[380998864,1755930742345,-400.0,0.0001589,2]
[380998865,1755930742355,-855.49,0.0001589,2]
[380998866,1755930742364,-400.0,0.0001589,2]
[380998867,1755930742375,-423.93,0.0001589,2]
[380998868,1755930742385,-400.0,0.0001589,2]
[380998869,1755930742394,-633.58,0.0001589,2]
[380998870,1755930742403,-509.54,0.0001589,2]
[380998871,1755930742412,-400.0,0.0001589,2]
[380998872,1755930742422,-400.0,0.0001589,2]
[380998873,1755930742431,-400.0,0.0001589,2]
[380998874,1755930742441,-3166.9,0.0001589,2]
[380998875,1755930742450,-400.0,0.0001589,2]
[380998876,1755930742459,-532.83,0.0001589,2]
[380998877,1755930742469,-400.0,0.0001589,2]
[380998878,1755930742479,-462.81,0.0001589,2]
[380998879,1755930742488,-487.36,0.0001589,2]
[380998880,1755930742498,-571.73,0.0001589,2]
[380998881,1755930742508,-781.23,0.0001589,2]
[380998882,1755930742518,-990.26,0.0001589,2]
[380998883,1755930742527,-400.0,0.0001589,2]
[380998884,1755930742537,-712.9,0.0001589,2]
[380998885,1755930742546,-761.19,0.0001589,2]
[380998886,1755930742555,-400.0,0.0001589,2]
[380998887,1755930742565,-400.0,0.0001589,2]
[380998888,1755930742575,-713.0,0.0001589,2]
[380998889,1755930742584,-594.22,0.0001589,2]
[380998890,1755930742593,-400.0,0.0001589,2]
[380998891,1755930742603,-736.28,0.0001589,2]
[380998892,1755930742613,-400.0,0.0001589,2]
[380998893,1755930742623,-715.03,0.0001589,2]
[380998894,1755930742632,-441.42,0.0001589,2]
[380998895,1755930742642,-400.0,0.0001589,2]
[380998896,1755930742651,-931.43,0.0001589,2]
[380998897,1755930742661,-602.5,0.0001589,2]
[380998898,1755930742671,-649.04,0.0001589,2]
[380998899,1755930742680,-553.23,0.0001589,2]
[380998900,1755930742689,-400.0,0.0001589,2]
[380998901,1755930742700,-400.0,0.0001589,2]
[380998902,1755930742709,-942.63,0.0001589,2]
[380998903,1755930742718,-419.63,0.0001589,2]
[380998904,1755930742728,-720.71,0.0001589,2]
[380998905,1755930742737,-624.59,0.0001589,2]
[380998906,1755930742747,-797.24,0.0001589,2]
[380998907,1755930742756,-400.0,0.0001589,2]
[380998908,1755930742765,-400.0,0.0001589,2]
[380998909,1755930742775,-400.0,0.0001589,2]
[380998910,1755930742784,-400.0,0.0001589,2]
[380998911,1755930742794,-587.49,0.0001589,2]
[380998912,1755930742804,-690.44,0.0001589,2]
[380998913,1755930742813,-692.13,0.0001589,2]
[380998914,1755930742822,-697.05,0.0001589,2]
[380998915,1755930742832,-731.85,0.0001589,2]
[380998916,1755930742841,-874.21,0.0001589,2]
[380998917,1755930742850,-542.89,0.0001589,2]
[380998918,1755930742859,-513.06,0.0001589,2]
[380998919,1755930742869,-460.59,0.0001589,2]
[380998920,1755930742878,-400.0,0.0001589,2]
[380998921,1755930742887,-764.63,0.0001589,2]
[380998922,1755930742898,-416.02,0.0001589,2]
[380998923,1755930742907,-512.62,0.0001589,2]
[380998924,1755930742918,-436.53,0.0001589,2]
[380998925,1755930742928,-418.83,0.0001589,2]
[380998926,1755930742938,-692.03,0.0001589,2]
[380998927,1755930742948,-400.0,0.0001589,2]
[380998928,1755930742957,-1343.83,0.0001589,2]
[380998929,1755930742967,-617.12,0.0001589,2]
[380998930,1755930742980,-400.0,0.0001589,2]
[380998931,1755930742990,-764.95,0.0001589,2]
[380998932,1755930742999,-704.81,0.0001589,2]
[380998933,1755930743009,-400.0,0.0001589,2]
[380998934,1755930743018,-657.79,0.0001589,2]
[380998935,1755930743028,-1027.02,0.0001589,2]
[380998936,1755930743039,-677.4,0.0001589,2]
[380998937,1755930743050,-400.0,0.0001589,2]
[380998938,1755930743060,-400.0,0.0001589,2]
[380998939,1755930743070,-400.0,0.0001589,2]
[380998940,1755930743081,-400.0,0.0001589,2]
[380998941,1755930743092,-400.0,0.0001589,2]
[380998942,1755930743102,-400.0,0.0001589,2]
[380998943,1755930743113,-817.2,0.0001589,2]
[380998944,1755930743123,-500.32,0.0001589,2]
[380998945,1755930743132,-400.0,0.0001589,2]
[380998946,1755930743141,-1019.45,0.0001589,2]
[380998947,1755930743151,-554.8,0.0001589,2]
[380998948,1755930743161,-632.54,0.0001589,2]
[380998949,1755930743170,-624.73,0.0001589,2]
[380998950,1755930743180,-583.62,0.0001589,2]
[380998951,1755930743189,-739.16,0.0001589,2]
[380998952,1755930743202,-853.25,0.0001589,2]
[380998953,1755930743213,-990.21,0.0001589,2]
[380998954,1755930743223,-12873.11,0.0001589,2]
[380998955,1755930743233,-400.0,0.0001589,2]
[380998956,1755930743244,-400.0,0.0001589,2]
[380998957,1755930743254,-588.98,0.0001589,2]
[380998958,1755930743265,-799.46,0.0001589,2]
[380998959,1755930743276,-646.95,0.0001589,2]
[380998960,1755930743287,-418.63,0.0001589,2]
[380998961,1755930743302,-435.65,0.0001589,2]
[380998962,1755930743313,-987.03,0.0001589,2]
[380998963,1755930743324,-453.72,0.0001589,2]
[380998964,1755930743335,-558.93,0.0001589,2]
[380998965,1755930743345,-421.41,0.0001589,2]
[380998966,1755930743355,-400.0,0.0001589,2]
[380998967,1755930743367,-801.09,0.0001589,2]
[380998968,1755930743378,-400.0,0.0001589,2]
[380998969,1755930743388,-738.24,0.0001589,2]
[380998970,1755930743398,-1045.55,0.0001589,2]
[380998971,1755930743412,-897.81,0.0001589,2]
[380998972,1755930743422,-940.82,0.0001589,2]
[380998973,1755930743431,-400.0,0.0001589,2]
[380998974,1755930743441,-400.0,0.0001589,2]
[380998975,1755930743452,-941.53,0.0001589,2]
[380998976,1755930743463,-1129.74,0.0001589,2]
[380998977,1755930743473,-400.0,0.0001589,2]
[380998978,1755930743483,-1172.0,0.0001589,2]
[380998979,1755930743494,-740.0,0.0001589,2]
[380998980,1755930743504,-831.91,0.0001589,2]
[380998981,1755930743514,-400.0,0.0001589,2]
[380998982,1755930743524,-778.45,0.0001589,2]
[380998983,1755930743533,-419.05,0.0001589,2]
[380998984,1755930743543,-400.0,0.0001589,2]
[380998985,1755930743553,-407.06,0.0001589,2]
[380998986,1755930743562,-1047.67,0.0001589,2]
[380998987,1755930743572,-400.0,0.0001589,2]
[380998988,1755930743581,-640.87,0.0001589,2]
[380998989,1755930743591,-400.0,0.0001589,2]
[380998990,1755930743600,-406.8,0.0001589,2]
[380998991,1755930743610,-400.0,0.0001589,2]
[380998992,1755930743619,-620.0,0.0001589,2]
[380998993,1755930743629,-566.33,0.0001589,2]
[380998994,1755930743641,-428.51,0.0001589,2]
[380998995,1755930743651,-400.0,0.0001589,2]
[380998996,1755930743660,-643.19,0.0001589,2]
[380998997,1755930743670,-1110.17,0.0001589,2]
[380998998,1755930743679,-400.0,0.0001589,2]
[380998999,1755930743689,-1209.16,0.0001589,2]
[380999000,1755930743698,-1114.49,0.0001589,2]
[380999001,1755930743708,-716.98,0.0001589,2]
[380999002,1755930743717,-458.89,0.0001589,2]
[380999003,1755930743727,-400.0,0.0001589,2]
[380999004,1755930743736,-626.95,0.0001589,2]
[380999005,1755930743745,-932.5,0.0001589,2]
[380999006,1755930743755,-893.99,0.0001589,2]
[380999007,1755930743764,-400.0,0.0001589,2]
[380999008,1755930743773,-640.9,0.0001589,2]
[380999009,1755930743782,-400.0,0.0001589,2]
[380999010,1755930743792,-1077.14,0.0001589,2]
[380999011,1755930743801,-400.0,0.0001589,2]
[380999012,1755930743810,-1129.31,0.0001589,2]
[380999013,1755930743820,-897.5,0.0001589,2]
[380999014,1755930743829,-928.82,0.0001589,2]
[380999015,1755930743838,-985.74,0.0001589,2]
[380999016,1755930743848,-584.91,0.0001589,2]
[380999017,1755930743857,-672.3,0.0001589,2]
[380999018,1755930743868,-681.69,0.0001589,2]
[380999019,1755930743879,-486.38,0.0001589,2]
[380999020,1755930743888,-482.01,0.0001589,2]
[380999021,1755930743898,-801.05,0.0001589,2]
[380999022,1755930743908,-705.27,0.0001589,2]
[380999023,1755930743918,-649.64,0.0001589,2]
[380999024,1755930743927,-611.51,0.0001589,2]
[380999025,1755930743937,-504.22,0.0001589,2]
[380999026,1755930743947,-475.16,0.0001589,2]
[380999027,1755930743958,-400.0,0.0001589,2]
[380999028,1755930743968,-810.53,0.0001589,2]
[380999029,1755930743978,-753.61,0.0001589,2]
[380999030,1755930743988,-667.17,0.0001589,2]
[380999031,1755930743997,-446.02,0.0001589,2]
[380999032,1755930744007,-400.0,0.0001589,2]
[380999033,1755930744016,-696.36,0.0001589,2]
[380999034,1755930744026,-616.47,0.0001589,2]
[380999035,1755930744036,-1407.45,0.0001589,2]
[380999036,1755930744045,-400.0,0.0001589,2]
[380999037,1755930744055,-508.92,0.0001589,2]
[380999038,1755930744065,-881.54,0.0001589,2]
[380999039,1755930744074,-855.52,0.0001589,2]
[380999040,1755930744083,-2291.05,0.0001589,2]
[380999041,1755930744093,-400.0,0.0001589,2]
[380999042,1755930744103,-400.0,0.0001589,2]
[380999043,1755930744113,-400.0,0.0001589,2]
[380999044,1755930744123,-1284.58,0.0001589,2]
[380999045,1755930744133,-866.11,0.0001589,2]
[380999046,1755930744142,-1014.43,0.0001589,2]
[380999047,1755930744152,-729.3,0.0001589,2]
[380999048,1755930744162,-440.11,0.0001589,2]
[380999049,1755930744172,-400.0,0.0001589,2]
[380999050,1755930744182,-400.0,0.0001589,2]
[380999051,1755930744192,-477.59,0.0001589,2]
[380999052,1755930744201,-520.35,0.0001589,2]
[380999053,1755930744211,-1238.33,0.0001589,2]
[380999054,1755930744220,-400.0,0.0001589,2]
[380999055,1755930744230,-772.76,0.0001589,2]
[380999056,1755930744240,-656.46,0.0001589,2]
[380999057,1755930744250,-400.0,0.0001589,2]
[380999058,1755930744260,-892.57,0.0001589,2]
[380999059,1755930744270,-400.0,0.0001589,2]
[380999060,1755930744279,-400.0,0.0001589,2]
[380999061,1755930744289,-600.2,0.0001589,2]
[380999062,1755930744302,-400.0,0.0001589,2]
[380999063,1755930744311,-400.0,0.0001589,2]
[380999064,1755930744320,-602.88,0.0001589,2]
[380999065,1755930744331,-590.02,0.0001589,2]
[380999066,1755930744340,-1076.13,0.0001589,2]
[380999067,1755930744350,-400.0,0.0001589,2]
[380999068,1755930744372,-736.8,0.0001589,2]
[380999069,1755930744381,-1141.99,0.0001589,2]
[380999070,1755930744391,-451.08,0.0001589,2]
[380999071,1755930744400,-400.0,0.0001589,2]
[380999072,1755930744410,-573.5,0.0001589,2]
[380999073,1755930744420,-821.55,0.0001589,2]
[380999074,1755930744430,-1096.32,0.0001589,2]
[380999075,1755930744440,-562.1,0.0001589,2]
[380999076,1755930744451,-624.58,0.0001589,2]
[380999077,1755930744461,-1117.58,0.0001589,2]
[380999078,1755930744472,-1352.51,0.0001589,2]
[380999079,1755930744482,-1337.58,0.0001589,2]
[380999080,1755930744492,-930.86,0.0001589,2]
[380999081,1755930744502,-463.18,0.0001589,2]
[380999082,1755930744512,-491.34,0.0001589,2]
[380999083,1755930744523,-1340.25,0.0001589,2]
[380999084,1755930744533,-400.0,0.0001589,2]
[380999085,1755930744543,-546.89,0.0001589,2]
[380999086,1755930744554,-871.98,0.0001589,2]
[380999087,1755930744565,-734.61,0.0001589,2]
[380999088,1755930744575,-944.89,0.0001589,2]
[380999089,1755930744586,-1082.98,0.0001589,2]
[380999090,1755930744596,-1287.92,0.0001589,2]
[380999091,1755930744607,-400.0,0.0001589,2]
[380999092,1755930744616,-400.0,0.0001589,2]
[380999093,1755930744626,-493.59,0.0001589,2]
[380999094,1755930744636,-411.6,0.0001589,2]
[380999095,1755930744646,-802.48,0.0001589,2]
[380999096,1755930744655,-794.21,0.0001589,2]
[380999097,1755930744666,-445.1,0.0001589,2]
[380999098,1755930744676,-581.6,0.0001589,2]
[380999099,1755930744686,-1006.63,0.0001589,2]
[380999100,1755930744696,-548.11,0.0001589,2]
[380999101,1755930744707,-1523.05,0.0001589,2]
[380999102,1755930744717,-400.0,0.0001589,2]
[380999103,1755930744727,-454.19,0.0001589,2]
[380999104,1755930744737,-540.12,0.0001589,2]
[380999105,1755930744748,-567.41,0.0001589,2]
[380999106,1755930744758,-760.57,0.0001589,2]
[380999107,1755930744773,-541.18,0.0001589,2]
[380999108,1755930744783,-1038.57,0.0001589,2]
[380999109,1755930744793,-400.0,0.0001589,2]
[380999110,1755930744804,-1113.52,0.0001589,2]
[380999111,1755930744814,-584.57,0.0001589,2]
[380999112,1755930744824,-400.0,0.0001589,2]
[380999113,1755930744834,-400.0,0.0001589,2]
[380999114,1755930744845,-684.51,0.0001589,2]
[380999115,1755930744855,-904.27,0.0001589,2]
[380999116,1755930744865,-660.57,0.0001589,2]
[380999117,1755930744876,-871.26,0.0001589,2]
[380999118,1755930744886,-923.07,0.0001589,2]
[380999119,1755930744896,-1031.27,0.0001589,2]
[380999120,1755930744906,-986.27,0.0001589,2]
[380999121,1755930744916,-994.88,0.0001589,2]
[380999122,1755930744926,-1872.47,0.0001589,2]
[380999123,1755930744936,-400.0,0.0001589,2]
[380999124,1755930744947,-768.72,0.0001589,2]
[380999125,1755930744958,-1031.23,0.0001589,2]
[380999126,1755930744969,-571.58,0.0001589,2]
[380999127,1755930744979,-400.0,0.0001589,2]
[380999128,1755930744990,-775.88,0.0001589,2]
[380999129,1755930745000,-400.0,0.0001589,2]
[380999130,1755930745011,-1016.95,0.0001589,2]
[380999131,1755930745020,-647.53,0.0001589,2]
[380999132,1755930745031,-908.13,0.0001589,2]
[380999133,1755930745041,-639.89,0.0001589,2]
[380999134,1755930745052,-605.11,0.0001589,2]
[380999135,1755930745064,-402.71,0.0001589,2]
[380999136,1755930745074,-999.76,0.0001589,2]
[380999137,1755930745085,-405.51,0.0001589,2]
[380999138,1755930745095,-968.0,0.0001589,2]
[380999139,1755930745105,-400.0,0.0001589,2]
[380999140,1755930745116,-834.9,0.0001589,2]
[380999141,1755930745126,-838.11,0.0001589,2]
[380999142,1755930745136,-1449.64,0.0001589,2]
[380999143,1755930745147,-873.94,0.0001589,2]
[380999144,1755930745158,-764.67,0.0001589,2]
[380999145,1755930745173,-839.44,0.0001589,2]
[380999146,1755930745184,-402.87,0.0001589,2]
[380999147,1755930745195,-400.0,0.0001589,2]
[380999148,1755930745206,-747.31,0.0001589,2]
[380999149,1755930745217,-514.65,0.0001589,2]
[380999150,1755930745228,-2296.87,0.0001589,2]
[380999151,1755930745239,-400.0,0.0001589,2]
[380999152,1755930745250,-400.0,0.0001589,2]
[380999153,1755930745261,-1231.43,0.0001589,2]
[380999154,1755930745272,-400.0,0.0001589,2]
[380999155,1755930745284,-496.75,0.0001589,2]
[380999156,1755930745295,-1067.81,0.0001589,2]
[380999157,1755930745308,-400.0,0.0001589,2]
[380999158,1755930745319,-1143.89,0.0001589,2]
[380999159,1755930745330,-400.0,0.0001589,2]
[380999160,1755930745342,-1047.41,0.0001589,2]
[380999161,1755930745353,-1043.98,0.0001589,2]
[380999162,1755930745364,-621.01,0.0001589,2]
[380999163,1755930745376,-688.55,0.0001589,2]
[380999164,1755930745388,-2024.11,0.0001589,2]
[380999165,1755930745402,-400.0,0.0001589,2]
[380999166,1755930745413,-400.0,0.0001589,2]
[380999167,1755930745424,-471.83,0.0001589,2]
[380999168,1755930745435,-1569.0,0.0001589,2]
[380999169,1755930745446,-702.78,0.0001589,2]
[380999170,1755930745459,-1557.8,0.0001589,2]
[380999171,1755930745470,-562.49,0.0001589,2]
[380999172,1755930745482,-1015.96,0.0001589,2]
[380999173,1755930745493,-400.0,0.0001589,2]
[380999174,1755930745504,-415.83,0.0001589,2]
[380999175,1755930745515,-1619.12,0.0001589,2]
[380999176,1755930745525,-873.77,0.0001589,2]
[380999177,1755930745536,-704.74,0.0001589,2]
[380999178,1755930745547,-603.17,0.0001589,2]
[380999179,1755930745558,-1020.89,0.0001589,2]
[380999180,1755930745569,-718.17,0.0001589,2]
[380999181,1755930745580,-1397.26,0.0001589,2]
[380999182,1755930745591,-779.46,0.0001589,2]
[380999183,1755930745601,-659.51,0.0001589,2]
[380999184,1755930745612,-796.66,0.0001589,2]
[380999185,1755930745624,-873.13,0.0001589,2]
[380999186,1755930745639,-400.0,0.0001589,2]
[380999187,1755930745650,-1242.26,0.0001589,2]
[380999188,1755930745661,-535.86,0.0001589,2]
[380999189,1755930745672,-400.0,0.0001589,2]
[380999190,1755930745683,-607.83,0.0001589,2]
[380999191,1755930745694,-400.0,0.0001589,2]
[380999192,1755930745706,-400.0,0.0001589,2]
[380999193,1755930745717,-643.58,0.0001589,2]
[380999194,1755930745728,-734.36,0.0001589,2]
[380999195,1755930745739,-1009.14,0.0001589,2]
[380999196,1755930745751,-590.01,0.0001589,2]
[380999197,1755930745762,-593.25,0.0001589,2]
[380999198,1755930745774,-566.68,0.0001589,2]
[380999199,1755930745785,-739.95,0.0001589,2]
[380999200,1755930745795,-752.12,0.0001589,2]
[380999201,1755930745807,-821.45,0.0001589,2]
[380999202,1755930745818,-1020.13,0.0001589,2]
[380999203,1755930745829,-686.64,0.0001589,2]
[380999204,1755930745840,-567.76,0.0001589,2]
[380999205,1755930745851,-1008.59,0.0001589,2]
[380999206,1755930745864,-749.2,0.0001589,2]
[380999207,1755930745876,-761.24,0.0001589,2]
[380999208,1755930745887,-782.78,0.0001589,2]
[380999209,1755930745899,-676.25,0.0001589,2]
[380999210,1755930745910,-696.26,0.0001589,2]
[380999211,1755930745921,-1360.81,0.0001589,2]
[380999212,1755930745932,-512.32,0.0001589,2]
[380999213,1755930745943,-1871.16,0.0001589,2]
[380999214,1755930745955,-408.99,0.0001589,2]
[380999215,1755930745967,-491.72,0.0001589,2]
[380999216,1755930745979,-638.4,0.0001589,2]
[380999217,1755930745990,-633.69,0.0001589,2]
[380999218,1755930746001,-1307.02,0.0001589,2]
[380999219,1755930746012,-807.4,0.0001589,2]
[380999220,1755930746023,-515.86,0.0001589,2]
[380999221,1755930746036,-459.89,0.0001589,2]
[380999222,1755930746047,-718.67,0.0001589,2]
[380999223,1755930746058,-553.1,0.0001589,2]
[380999224,1755930746069,-620.72,0.0001589,2]
[380999225,1755930746081,-928.31,0.0001589,2]
[380999226,1755930746092,-2900.39,0.0001589,2]
[380999227,1755930746103,-405.54,0.0001589,2]
[380999228,1755930746114,-591.71,0.0001589,2]
[380999229,1755930746125,-992.94,0.0001589,2]
[380999230,1755930746136,-1259.98,0.0001589,2]
[380999231,1755930746147,-494.42,0.0001589,2]
[380999232,1755930746158,-400.0,0.0001589,2]
[380999233,1755930746170,-734.9,0.0001589,2]
[380999234,1755930746181,-810.57,0.0001589,2]
[380999235,1755930746193,-709.79,0.0001589,2]
[380999236,1755930746204,-931.49,0.0001589,2]
[380999237,1755930746215,-567.95,0.0001589,2]
[380999238,1755930746226,-827.71,0.0001589,2]
[380999239,1755930746238,-624.47,0.0001589,2]
[380999240,1755930746249,-732.26,0.0001589,2]
[380999241,1755930746260,-3127.36,0.0001589,2]
[380999242,1755930746271,-400.0,0.0001589,2]
[380999243,1755930746282,-400.0,0.0001589,2]
[380999244,1755930746296,-427.22,0.0001589,2]
[380999245,1755930746308,-400.0,0.0001589,2]
[380999246,1755930746324,-400.0,0.0001589,2]
[380999247,1755930746341,-1299.81,0.0001589,2]
[380999248,1755930746354,-400.0,0.0001589,2]
[380999249,1755930746365,-400.0,0.0001589,2]
[380999250,1755930746379,-400.0,0.0001589,2]
[380999251,1755930746391,-400.0,0.0001589,2]
[380999252,1755930746403,-879.49,0.0001589,2]
[380999253,1755930746414,-400.0,0.0001589,2]
[380999254,1755930746425,-762.43,0.0001589,2]
[380999255,1755930746437,-992.2,0.0001589,2]
[380999256,1755930746448,-481.7,0.0001589,2]
[380999257,1755930746460,-578.22,0.0001589,2]
[380999258,1755930746472,-400.0,0.0001589,2]
[380999259,1755930746483,-546.74,0.0001589,2]
[380999260,1755930746495,-542.83,0.0001589,2]
[380999261,1755930746507,-717.03,0.0001589,2]
[380999262,1755930746519,-400.0,0.0001589,2]
[380999263,1755930746534,-401.89,0.0001589,2]
[380999264,1755930746546,-459.83,0.0001589,2]
[380999265,1755930746557,-593.29,0.0001589,2]
[380999266,1755930746568,-400.0,0.0001589,2]
[380999267,1755930746579,-552.32,0.0001589,2]
[380999268,1755930746591,-300.0,0.00015891,2]
[380999269,1755930746603,-150.0,0.00015901,2]
[380999270,1755930746614,-733.0,0.00015925,2]
[380999271,1755930746626,-696.0,0.00015925,2]
[380999272,1755930746638,-736.0,0.00015925,2]
[380999273,1755930746648,-554.04627419,0.00016,2]
[380999274,1755930746660,-1040.0,0.00016,3]
[380999275,1755930746671,-1040.0,0.00016,3]
[380999276,1755930746682,-1040.0,0.00016,3]
[380999277,1755930746694,-51000.0,0.00016,2]
[380999278,1755930746705,-200.302847,0.00016,2]
[380999279,1755930746716,-212.10093811,0.00016,3]
[380999280,1755930746727,-458.60200496,0.00016,3]
[380999281,1755930746739,-6146.04472662,0.00016074,2]
[380999282,1755930746750,-162.63354178,0.00016075,2]
[380999283,1755930746764,-51919.93953385,0.00016075,2]
[380999284,1755930746776,-123594.35114565,0.00016076,2]
[380999285,1755930746787,-6146.04472662,0.00016081,2]
[380999286,1755930746798,-6264.69625423,0.00016081,2]
[380999287,1755930746810,-162.63354178,0.00016082,2]
[380999288,1755930746821,-51919.93953385,0.00016084,2]
[380999289,1755930746832,-51919.93953385,0.00016085,2]
[380999290,1755930746844,-492.68634693,0.00016085,2]
[380999291,1755930747344,-15309.856525,0.00016086,2]
[380999292,1755930747361,-852.22946767,0.00016087,2]
[380999293,1755930747373,-8729.40758725,0.00016089,2]
[380999294,1755930747383,-164486.66564309,0.0001609,2]
[380999295,1755930747393,-8729.40758725,0.0001609,2]
[380999296,1755930747403,-164486.66564309,0.00016094,2]
[380999297,1755930747413,-164486.66564309,0.00016096,2]
[380999298,1755930747422,-6220.70473785,0.00016096,2]
[380999299,1755930747432,-162.63354178,0.00016097,2]
[380999300,1755930747442,-6146.04472662,0.00016098,2]
[380999301,1755930747452,-6146.04472662,0.00016098,2]
[380999302,1755930747463,-9422.72,0.000161,2]
[380999303,1755930747473,-123594.35114565,0.00016102,2]
[380999304,1755930747483,-2515.67845743,0.00016102,2]
[380999305,1755930747493,-162.63354178,0.00016103,2]
[380999306,1755930747502,-15309.856525,0.00016103,2]
[380999307,1755930747512,-8729.40758725,0.00016104,2]
[380999308,1755930747522,-51919.93953385,0.00016105,2]
[380999309,1755930747533,-162.31421646,0.0001611,2]
[380999310,1755930747543,-4672.98701713,0.00016111,2]